Workbook

Sheet Price Distribution
A1: Bin | B1: Frequency
A2: =MIN('Monte Carlo'!D14:D1013) -> 2.508846173 | B2: =FREQUENCY('Monte Carlo'!D14:D1013,'Price Distribution'!A2:A33) -> 1
A3: =A2+($A$32-$A$2)/ROWS($A$2:$A$31) -> 2.534072194 | B3: 3
A4: =A3+($A$32-$A$2)/ROWS($A$2:$A$31) -> 2.559298215 | B4: 0
A5: 2.584524237 | B5: 2
A6: 2.609750258 | B6: 10
A7: 2.634976279 | B7: 12
A8: 2.660202301 | B8: 18
A9: 2.685428322 | B9: 27
A10: 2.710654343 | B10: 29
A11: 2.735880365 | B11: 55
A12: 2.761106386 | B12: 61
A13: 2.786332407 | B13: 68
A14: 2.811558429 | B14: 67
A15: 2.83678445 | B15: 91
A16: 2.862010471 | B16: 91
A17: 2.887236493 | B17: 76
A18: 2.912462514 | B18: 83
A19: 2.937688535 | B19: 69
A20: 2.962914557 | B20: 57
A21: 2.988140578 | B21: 39
A22: 3.013366599 | B22: 44
A23: 3.038592621 | B23: 31
A24: 3.063818642 | B24: 15
A25: 3.089044663 | B25: 18
A26: 3.114270685 | B26: 10
A27: 3.139496706 | B27: 10
A28: 3.164722727 | B28: 6
A29: 3.189948749 | B29: 3
A30: 3.21517477 | B30: 1
A31: 3.240400791 | B31: 1
A32: =MAX('Monte Carlo'!D14:D1013) -> 3.265626813 | B32: 2
A33: More | B33: 0

Sheet Monte Carlo
AG1: License: GPL 2.0
B2: Valuation Date | C2: 2020-10-29 | E2: Option Price [USD] | F2: =AVERAGE(E14:E1013)*DF -> 0.0292880935 | AG2: Call
B3: Call / Put | C3: Call | E3: CP | F3: =IF(C3="Call",1,-1) -> 1 | AG3: Put
B4: Option Strike [USD] | C4: 2.9
B5: Futures price [USD] | C5: 2.86
B6: Option Expiry | C6: 2020-12-29 | E6: Tau | F6: =(C6-C2)/365 -> 0.1671232877
B7: Volatility | C7: 0.25 | E7: Sigma | F7: =C7*SQRT(Tau) -> 0.102201788 | I7: https://processiqcompany.com
B8: Interest rate | C8: 0.01 | E8: Discount Factor | F8: =1/(1+IRate*Tau) -> 0.9983315555
A13: Path | B13: Random Number | C13: Normal | D13: Random Price | E13: Payout
A14: 1 | B14: =_xlfn.RANDARRAY(1000,1) -> 0.4726345078 | C14: =_xlfn.NORM.S.INV(B14) -> -0.06864899857 | D14: =P*EXP(-Sig*Sig/2*Tau+Sig*SQRT(Tau)*C14) -> 2.849320642 | E14: =MAX(0,CP*(D14-Strike)) -> 0
A15: 2 | B15: 0.7641448029 | C15: =_xlfn.NORM.S.INV(B15) -> 0.7196989155 | D15: =P*EXP(-Sig*Sig/2*Tau+Sig*SQRT(Tau)*C15) -> 2.944733788 | E15: 0.04473378819
A16: 3 | B16: 0.5772552004 | C16: 0.1948765415 | D16: =P*EXP(-Sig*Sig/2*Tau+Sig*SQRT(Tau)*C16) -> 2.880865899 | E16: 0
A17: 4 | B17: 0.1421355834 | C17: -1.070773763 | D17: =P*EXP(-Sig*Sig/2*Tau+Sig*SQRT(Tau)*C17) -> 2.732483762 | E17: 0
A18: 5 | B18: 0.4609842076 | C18: -0.09795451008 | D18: =P*EXP(-Sig*Sig/2*Tau+Sig*SQRT(Tau)*C18) -> 2.845834045 | E18: 0
A19: 6 | B19: 0.2499172679 | C19: -0.6747501197 | D19: =P*EXP(-Sig*Sig/2*Tau+Sig*SQRT(Tau)*C19) -> 2.778072083 | E19: 0
A20: 7 | B20: 0.9183366721 | C20: 1.393970027 | D20: =P*EXP(-Sig*Sig/2*Tau+Sig*SQRT(Tau)*C20) -> 3.028871233 | E20: 0.128871233
A21: 8 | B21: 0.6646858889 | C21: 0.425285967 | D21: =P*EXP(-Sig*Sig/2*Tau+Sig*SQRT(Tau)*C21) -> 2.908733036 | E21: 0.008733035952
A22: 9 | B22: 0.6462111861 | C22: 0.3751113882 | D22: =P*EXP(-Sig*Sig/2*Tau+Sig*SQRT(Tau)*C22) -> 2.902641744 | E22: 0.0026417436
A23: 10 | B23: 0.8246068868 | C23: 0.9330653532 | D23: =P*EXP(-Sig*Sig/2*Tau+Sig*SQRT(Tau)*C23) -> 2.971102344 | E23: 0.07110234431
A24: 11 | B24: 0.691192196 | C24: 0.4992324905 | D24: =P*EXP(-Sig*Sig/2*Tau+Sig*SQRT(Tau)*C24) -> 2.917733599 | E24: 0.01773359868
A25: 12 | B25: 0.8891796173 | C25: 1.222176826 | D25: =P*EXP(-Sig*Sig/2*Tau+Sig*SQRT(Tau)*C25) -> 3.007208857 | E25: 0.1072088572
A26: 13 | B26: 0.9384657218 | C26: 1.542020729 | D26: =P*EXP(-Sig*Sig/2*Tau+Sig*SQRT(Tau)*C26) -> 3.047664927 | E26: 0.1476649272
A27: 14 | B27: 0.2527577343 | C27: -0.6658367243 | D27: =P*EXP(-Sig*Sig/2*Tau+Sig*SQRT(Tau)*C27) -> 2.779106854 | E27: 0
A28: 15 | B28: 0.8306166266 | C28: 0.9566048365 | D28: =P*EXP(-Sig*Sig/2*Tau+Sig*SQRT(Tau)*C28) -> 2.974025858 | E28: 0.07402585777
A29: 16 | B29: 0.8170198619 | C29: 0.9040662442 | D29: =P*EXP(-Sig*Sig/2*Tau+Sig*SQRT(Tau)*C29) -> 2.967504717 | E29: 0.06750471696
A30: 17 | B30: 0.541473681 | C30: 0.1041470693 | D30: =P*EXP(-Sig*Sig/2*Tau+Sig*SQRT(Tau)*C30) -> 2.869965924 | E30: 0
A31: 18 | B31: 0.7084313972 | C31: 0.5488080203 | D31: =P*EXP(-Sig*Sig/2*Tau+Sig*SQRT(Tau)*C31) -> 2.923783382 | E31: 0.02378338222
A32: 19 | B32: 0.03520822713 | C32: -1.80922243 | D32: =P*EXP(-Sig*Sig/2*Tau+Sig*SQRT(Tau)*C32) -> 2.649465724 | E32: 0
A33: 20 | B33: 0.6591303318 | C33: 0.4100908065 | D33: =P*EXP(-Sig*Sig/2*Tau+Sig*SQRT(Tau)*C33) -> 2.906886965 | E33: 0.006886965456
A34: 21 | B34: 0.2695522442 | C34: -0.6141677405 | D34: =P*EXP(-Sig*Sig/2*Tau+Sig*SQRT(Tau)*C34) -> 2.785112795 | E34: 0
A35: 22 | B35: 0.2521600006 | C35: -0.6677080019 | D35: =P*EXP(-Sig*Sig/2*Tau+Sig*SQRT(Tau)*C35) -> 2.778889583 | E35: 0
A36: 23 | B36: 0.35589356 | C36: -0.369456998 | D36: =P*EXP(-Sig*Sig/2*Tau+Sig*SQRT(Tau)*C36) -> 2.813734457 | E36: 0
A37: 24 | B37: 0.1131195211 | C37: -1.21010386 | D37: =P*EXP(-Sig*Sig/2*Tau+Sig*SQRT(Tau)*C37) -> 2.716623292 | E37: 0
A38: 25 | B38: 0.487609174 | C38: -0.03106419016 | D38: =P*EXP(-Sig*Sig/2*Tau+Sig*SQRT(Tau)*C38) -> 2.853798514 | E38: 0
A39: 26 | B39: 0.1796020489 | C39: -0.916882724 | D39: =P*EXP(-Sig*Sig/2*Tau+Sig*SQRT(Tau)*C39) -> 2.750109399 | E39: 0
A40: 27 | B40: 0.0627950294 | C40: -1.531726019 | D40: =P*EXP(-Sig*Sig/2*Tau+Sig*SQRT(Tau)*C40) -> 2.680362467 | E40: 0
A41: 28 | B41: 0.9101318591 | C41: 1.341567463 | D41: =P*EXP(-Sig*Sig/2*Tau+Sig*SQRT(Tau)*C41) -> 3.022247009 | E41: 0.1222470093
A42: 29 | B42: 0.9288585373 | C42: 1.467342436 | D42: =P*EXP(-Sig*Sig/2*Tau+Sig*SQRT(Tau)*C42) -> 3.038170665 | E42: 0.1381706648
A43: 30 | B43: 0.4209078375 | C43: -0.1995715564 | D43: =P*EXP(-Sig*Sig/2*Tau+Sig*SQRT(Tau)*C43) -> 2.83377726 | E43: 0
A44: 31 | B44: 0.008255550226 | C44: -2.39741746 | D44: =P*EXP(-Sig*Sig/2*Tau+Sig*SQRT(Tau)*C44) -> 2.585147934 | E44: 0
A45: 32 | B45: 0.3799469169 | C45: -0.3056202062 | D45: =P*EXP(-Sig*Sig/2*Tau+Sig*SQRT(Tau)*C45) -> 2.821249136 | E45: 0
A46: 33 | B46: 0.4126205074 | C46: -0.2208091808 | D46: =P*EXP(-Sig*Sig/2*Tau+Sig*SQRT(Tau)*C46) -> 2.831263893 | E46: 0
A47: 34 | B47: 0.1657732692 | C47: -0.9710034943 | D47: =P*EXP(-Sig*Sig/2*Tau+Sig*SQRT(Tau)*C47) -> 2.743897849 | E47: 0
A48: 35 | B48: 0.3717525255 | C48: -0.3272152982 | D48: =P*EXP(-Sig*Sig/2*Tau+Sig*SQRT(Tau)*C48) -> 2.818704782 | E48: 0
A49: 36 | B49: 0.03258839714 | C49: -1.844043546 | D49: =P*EXP(-Sig*Sig/2*Tau+Sig*SQRT(Tau)*C49) -> 2.645613939 | E49: 0
A50: 37 | B50: 0.9635736297 | C50: 1.793752131 | D50: =P*EXP(-Sig*Sig/2*Tau+Sig*SQRT(Tau)*C50) -> 3.079888037 | E50: 0.1798880368
A51: 38 | B51: 0.4429894136 | C51: -0.1433942459 | D51: =P*EXP(-Sig*Sig/2*Tau+Sig*SQRT(Tau)*C51) -> 2.840436328 | E51: 0
A52: 39 | B52: 0.04604842654 | C52: -1.684439031 | D52: =P*EXP(-Sig*Sig/2*Tau+Sig*SQRT(Tau)*C52) -> 2.663314924 | E52: 0
A53: 40 | B53: 0.5939591393 | C53: 0.2377413357 | D53: =P*EXP(-Sig*Sig/2*Tau+Sig*SQRT(Tau)*C53) -> 2.886029941 | E53: 0
A54: 41 | B54: 0.7961757343 | C54: 0.8280387918 | D54: =P*EXP(-Sig*Sig/2*Tau+Sig*SQRT(Tau)*C54) -> 2.958093425 | E54: 0.05809342489
A55: 42 | B55: 0.6542969749 | C55: 0.3969476702 | D55: =P*EXP(-Sig*Sig/2*Tau+Sig*SQRT(Tau)*C55) -> 2.905291142 | E55: 0.005291141793
A56: 43 | B56: 0.3312645179 | C56: -0.4364241287 | D56: =P*EXP(-Sig*Sig/2*Tau+Sig*SQRT(Tau)*C56) -> 2.805872795 | E56: 0
A57: 44 | B57: 0.920366748 | C57: 1.40754277 | D57: =P*EXP(-Sig*Sig/2*Tau+Sig*SQRT(Tau)*C57) -> 3.030589334 | E57: 0.1305893335
A58: 45 | B58: 0.3084610156 | C58: -0.5002173667 | D58: =P*EXP(-Sig*Sig/2*Tau+Sig*SQRT(Tau)*C58) -> 2.798404165 | E58: 0
A59: 46 | B59: 0.9737570719 | C59: 1.939127161 | D59: =P*EXP(-Sig*Sig/2*Tau+Sig*SQRT(Tau)*C59) -> 3.09865186 | E59: 0.1986518596
A60: 47 | B60: 0.1257890043 | C60: -1.146524953 | D60: =P*EXP(-Sig*Sig/2*Tau+Sig*SQRT(Tau)*C60) -> 2.723849267 | E60: 0
A61: 48 | B61: 0.9329419256 | C61: 1.498065826 | D61: =P*EXP(-Sig*Sig/2*Tau+Sig*SQRT(Tau)*C61) -> 3.042073112 | E61: 0.1420731122
A62: 49 | B62: 0.07423360708 | C62: -1.44496679 | D62: =P*EXP(-Sig*Sig/2*Tau+Sig*SQRT(Tau)*C62) -> 2.690096068 | E62: 0
A63: 50 | B63: 0.05028095254 | C63: -1.642135601 | D63: =P*EXP(-Sig*Sig/2*Tau+Sig*SQRT(Tau)*C63) -> 2.668026422 | E63: 0
A64: 51 | B64: 0.8457847731 | C64: 1.018520942 | D64: =P*EXP(-Sig*Sig/2*Tau+Sig*SQRT(Tau)*C64) -> 2.981729342 | E64: 0.08172934222
A65: 52 | B65: 0.8765008087 | C65: 1.157670854 | D65: =P*EXP(-Sig*Sig/2*Tau+Sig*SQRT(Tau)*C65) -> 2.999115003 | E65: 0.09911500277
A66: 53 | B66: 0.3570511651 | C66: -0.3663521367 | D66: =P*EXP(-Sig*Sig/2*Tau+Sig*SQRT(Tau)*C66) -> 2.814099489 | E66: 0
A67: 54 | B67: 0.895462238 | C67: 1.256111564 | D67: =P*EXP(-Sig*Sig/2*Tau+Sig*SQRT(Tau)*C67) -> 3.011475566 | E67: 0.1114755659
A68: 55 | B68: 0.3018107336 | C68: -0.5191997301 | D68: =P*EXP(-Sig*Sig/2*Tau+Sig*SQRT(Tau)*C68) -> 2.796185634 | E68: 0
A69: 56 | B69: 0.5063838443 | C69: 0.0160026076 | D69: =P*EXP(-Sig*Sig/2*Tau+Sig*SQRT(Tau)*C69) -> 2.859416001 | E69: 0
A70: 57 | B70: 0.6732016648 | C70: 0.4487712637 | D70: =P*EXP(-Sig*Sig/2*Tau+Sig*SQRT(Tau)*C70) -> 2.911588587 | E70: 0.01158858737
A71: 58 | B71: 0.8042633581 | C71: 0.8569486146 | D71: =P*EXP(-Sig*Sig/2*Tau+Sig*SQRT(Tau)*C71) -> 2.961668594 | E71: 0.06166859415
A72: 59 | B72: 0.03809829112 | C72: -1.773193902 | D72: =P*EXP(-Sig*Sig/2*Tau+Sig*SQRT(Tau)*C72) -> 2.653456972 | E72: 0
A73: 60 | B73: 0.03503464161 | C73: -1.811462536 | D73: =P*EXP(-Sig*Sig/2*Tau+Sig*SQRT(Tau)*C73) -> 2.649217763 | E73: 0
A74: 61 | B74: 0.3447840101 | C74: -0.3994413647 | D74: =P*EXP(-Sig*Sig/2*Tau+Sig*SQRT(Tau)*C74) -> 2.810211698 | E74: 0
A75: 62 | B75: 0.3680055002 | C75: -0.3371404839 | D75: =P*EXP(-Sig*Sig/2*Tau+Sig*SQRT(Tau)*C75) -> 2.817536157 | E75: 0
A76: 63 | B76: 0.4131196013 | C76: -0.2195274457 | D76: =P*EXP(-Sig*Sig/2*Tau+Sig*SQRT(Tau)*C76) -> 2.831415517 | E76: 0
A77: 64 | B77: 0.4384607367 | C77: -0.1548729571 | D77: =P*EXP(-Sig*Sig/2*Tau+Sig*SQRT(Tau)*C77) -> 2.839074409 | E77: 0
A78: 65 | B78: 0.77204988 | C78: 0.7456146344 | D78: =P*EXP(-Sig*Sig/2*Tau+Sig*SQRT(Tau)*C78) -> 2.947924014 | E78: =MAX(0,CP*(D78-Strike)) -> 0.047924014
A79: 66 | B79: 0.7662143056 | C79: =_xlfn.NORM.S.INV(B79) -> 0.7264362281 | D79: =P*EXP(-Sig*Sig/2*Tau+Sig*SQRT(Tau)*C79) -> 2.945562819 | E79: 0.04556281933
A80: 67 | B80: 0.2943162548 | C80: -0.5408187619 | D80: =P*EXP(-Sig*Sig/2*Tau+Sig*SQRT(Tau)*C80) -> 2.793661089 | E80: 0
A81: 68 | B81: 0.1525564463 | C81: -1.025530604 | D81: =P*EXP(-Sig*Sig/2*Tau+Sig*SQRT(Tau)*C81) -> 2.737653851 | E81: 0
A82: 69 | B82: 0.1243261088 | C82: -1.15362921 | D82: =P*EXP(-Sig*Sig/2*Tau+Sig*SQRT(Tau)*C82) -> 2.723040889 | E82: 0
A83: 70 | B83: 0.7613019064 | C83: 0.710496683 | D83: =P*EXP(-Sig*Sig/2*Tau+Sig*SQRT(Tau)*C83) -> 2.943601824 | E83: 0.04360182388
A84: 71 | B84: 0.3567279933 | C84: -0.3672185728 | D84: =P*EXP(-Sig*Sig/2*Tau+Sig*SQRT(Tau)*C84) -> 2.813997619 | E84: 0
A85: 72 | B85: 0.6098420966 | C85: 0.2789075076 | D85: =P*EXP(-Sig*Sig/2*Tau+Sig*SQRT(Tau)*C85) -> 2.890998058 | E85: 0
A86: 73 | B86: 0.3935720559 | C86: -0.2700209818 | D86: =P*EXP(-Sig*Sig/2*Tau+Sig*SQRT(Tau)*C86) -> 2.825448485 | E86: 0
A87: 74 | B87: 0.6587923902 | C87: 0.4091695763 | D87: =P*EXP(-Sig*Sig/2*Tau+Sig*SQRT(Tau)*C87) -> 2.906775082 | E87: 0.006775082239
A88: 75 | B88: 0.1346574322 | C88: -1.104641723 | D88: =P*EXP(-Sig*Sig/2*Tau+Sig*SQRT(Tau)*C88) -> 2.728619946 | E88: 0
A89: 76 | B89: 0.4089444665 | C89: -0.2302610398 | D89: =P*EXP(-Sig*Sig/2*Tau+Sig*SQRT(Tau)*C89) -> 2.830146029 | E89: 0
A90: 77 | B90: 0.4171209786 | C90: -0.2092642513 | D90: =P*EXP(-Sig*Sig/2*Tau+Sig*SQRT(Tau)*C90) -> 2.832629901 | E90: 0
A91: 78 | B91: 0.4703378011 | C91: -0.0744207454 | D91: =P*EXP(-Sig*Sig/2*Tau+Sig*SQRT(Tau)*C91) -> 2.848633616 | E91: 0
A92: 79 | B92: 0.3637855515 | C92: -0.3483583164 | D92: =P*EXP(-Sig*Sig/2*Tau+Sig*SQRT(Tau)*C92) -> 2.816215914 | E92: 0
A93: 80 | B93: 0.6893447699 | C93: 0.4939939387 | D93: =P*EXP(-Sig*Sig/2*Tau+Sig*SQRT(Tau)*C93) -> 2.917095061 | E93: 0.01709506129
A94: 81 | B94: 0.5905868801 | C94: 0.2290549082 | D94: =P*EXP(-Sig*Sig/2*Tau+Sig*SQRT(Tau)*C94) -> 2.884982715 | E94: 0
A95: 82 | B95: 0.9581279578 | C95: 1.729363353 | D95: =P*EXP(-Sig*Sig/2*Tau+Sig*SQRT(Tau)*C95) -> 3.071613608 | E95: 0.1716136076
A96: 83 | B96: 0.2893756766 | C96: -0.5552095271 | D96: =P*EXP(-Sig*Sig/2*Tau+Sig*SQRT(Tau)*C96) -> 2.791981883 | E96: 0
A97: 84 | B97: 0.2276505322 | C97: -0.7466065982 | D97: =P*EXP(-Sig*Sig/2*Tau+Sig*SQRT(Tau)*C97) -> 2.769744199 | E97: 0
A98: 85 | B98: 0.9927145951 | C98: 2.442874339 | D98: =P*EXP(-Sig*Sig/2*Tau+Sig*SQRT(Tau)*C98) -> 3.164560249 | E98: 0.2645602488
A99: 86 | B99: 0.7706502356 | C99: 0.7409899586 | D99: =P*EXP(-Sig*Sig/2*Tau+Sig*SQRT(Tau)*C99) -> 2.947354463 | E99: 0.04735446302
A100: 87 | B100: 0.9429589309 | C100: 1.580107989 | D100: =P*EXP(-Sig*Sig/2*Tau+Sig*SQRT(Tau)*C100) -> 3.052518589 | E100: 0.1525185891
A101: 88 | B101: 0.3315904534 | C101: -0.435525675 | D101: =P*EXP(-Sig*Sig/2*Tau+Sig*SQRT(Tau)*C101) -> 2.805978124 | E101: 0
A102: 89 | B102: 0.4151101843 | C102: -0.2144189459 | D102: =P*EXP(-Sig*Sig/2*Tau+Sig*SQRT(Tau)*C102) -> 2.832019911 | E102: 0
A103: 90 | B103: 0.3267189655 | C103: -0.4489913024 | D103: =P*EXP(-Sig*Sig/2*Tau+Sig*SQRT(Tau)*C103) -> 2.804399911 | E103: 0
A104: 91 | B104: 0.8435019177 | C104: 1.008955107 | D104: =P*EXP(-Sig*Sig/2*Tau+Sig*SQRT(Tau)*C104) -> 2.980537877 | E104: 0.08053787724
A105: 92 | B105: 0.1712458449 | C105: -0.9492535148 | D105: =P*EXP(-Sig*Sig/2*Tau+Sig*SQRT(Tau)*C105) -> 2.74639245 | E105: 0
A106: 93 | B106: 0.2451498135 | C106: -0.6898323427 | D106: =P*EXP(-Sig*Sig/2*Tau+Sig*SQRT(Tau)*C106) -> 2.776322039 | E106: 0
A107: 94 | B107: 0.8991235931 | C107: 1.276573638 | D107: =P*EXP(-Sig*Sig/2*Tau+Sig*SQRT(Tau)*C107) -> 3.014051244 | E107: 0.1140512442
A108: 95 | B108: 0.1393537344 | C108: -1.083227472 | D108: =P*EXP(-Sig*Sig/2*Tau+Sig*SQRT(Tau)*C108) -> 2.731062349 | E108: 0
A109: 96 | B109: 0.6670764491 | C109: 0.4318545883 | D109: =P*EXP(-Sig*Sig/2*Tau+Sig*SQRT(Tau)*C109) -> 2.909531425 | E109: 0.009531425167
A110: 97 | B110: 0.6968167482 | C110: 0.5152669314 | D110: =P*EXP(-Sig*Sig/2*Tau+Sig*SQRT(Tau)*C110) -> 2.919688937 | E110: 0.01968893703
A111: 98 | B111: 0.9836015593 | C111: 2.134561056 | D111: =P*EXP(-Sig*Sig/2*Tau+Sig*SQRT(Tau)*C111) -> 3.124057137 | E111: 0.2240571375
A112: 99 | B112: 0.5049808009 | C112: 0.01248534078 | D112: =P*EXP(-Sig*Sig/2*Tau+Sig*SQRT(Tau)*C112) -> 2.858995828 | E112: 0
A113: 100 | B113: 0.3814058002 | C113: -0.3017907267 | D113: =P*EXP(-Sig*Sig/2*Tau+Sig*SQRT(Tau)*C113) -> 2.821700569 | E113: 0
A114: 101 | B114: 0.6385233679 | C114: 0.3545146003 | D114: =P*EXP(-Sig*Sig/2*Tau+Sig*SQRT(Tau)*C114) -> 2.900144948 | E114: 0.0001449475976
A115: 102 | B115: 0.0509935847 | C115: -1.635295247 | D115: =P*EXP(-Sig*Sig/2*Tau+Sig*SQRT(Tau)*C115) -> 2.668789041 | E115: 0
A116: 103 | B116: 0.02540663422 | C116: -1.953053396 | D116: =P*EXP(-Sig*Sig/2*Tau+Sig*SQRT(Tau)*C116) -> 2.633591832 | E116: 0
A117: 104 | B117: 0.08973657251 | C117: -1.342378985 | D117: =P*EXP(-Sig*Sig/2*Tau+Sig*SQRT(Tau)*C117) -> 2.701651112 | E117: 0
A118: 105 | B118: 0.3611133607 | C118: -0.3554844112 | D118: =P*EXP(-Sig*Sig/2*Tau+Sig*SQRT(Tau)*C118) -> 2.815377556 | E118: 0
A119: 106 | B119: 0.3457745098 | C119: -0.3967538042 | D119: =P*EXP(-Sig*Sig/2*Tau+Sig*SQRT(Tau)*C119) -> 2.81052727 | E119: 0
A120: 107 | B120: 0.1351632798 | C120: -1.102310837 | D120: =P*EXP(-Sig*Sig/2*Tau+Sig*SQRT(Tau)*C120) -> 2.728885689 | E120: 0
A121: 108 | B121: 0.6431657787 | C121: 0.3669337408 | D121: =P*EXP(-Sig*Sig/2*Tau+Sig*SQRT(Tau)*C121) -> 2.901650171 | E121: 0.001650170799
A122: 109 | B122: 0.3360865031 | C122: -0.4231675697 | D122: =P*EXP(-Sig*Sig/2*Tau+Sig*SQRT(Tau)*C122) -> 2.807427314 | E122: 0
A123: 110 | B123: 0.260792374 | C123: -0.6409044753 | D123: =P*EXP(-Sig*Sig/2*Tau+Sig*SQRT(Tau)*C123) -> 2.78200333 | E123: 0
A124: 111 | B124: 0.275037374 | C124: -0.5976481215 | D124: =P*EXP(-Sig*Sig/2*Tau+Sig*SQRT(Tau)*C124) -> 2.787035752 | E124: 0
A125: 112 | B125: 0.6856496988 | C125: 0.4835565711 | D125: =P*EXP(-Sig*Sig/2*Tau+Sig*SQRT(Tau)*C125) -> 2.915823247 | E125: 0.01582324656
A126: 113 | B126: 0.2109377151 | C126: -0.8031718212 | D126: =P*EXP(-Sig*Sig/2*Tau+Sig*SQRT(Tau)*C126) -> 2.763206076 | E126: 0
A127: 114 | B127: 0.139038672 | C127: -1.084648548 | D127: =P*EXP(-Sig*Sig/2*Tau+Sig*SQRT(Tau)*C127) -> 2.7309002 | E127: 0
A128: 115 | B128: 0.5698192247 | C128: 0.1759139438 | D128: =P*EXP(-Sig*Sig/2*Tau+Sig*SQRT(Tau)*C128) -> 2.878584371 | E128: 0
A129: 116 | B129: 0.04506854372 | C129: -1.694675017 | D129: =P*EXP(-Sig*Sig/2*Tau+Sig*SQRT(Tau)*C129) -> 2.662176154 | E129: 0
A130: 117 | B130: 0.8797893713 | C130: 1.173934512 | D130: =P*EXP(-Sig*Sig/2*Tau+Sig*SQRT(Tau)*C130) -> 3.001153621 | E130: 0.101153621
A131: 118 | B131: 0.7551020457 | C131: 0.6906334696 | D131: =P*EXP(-Sig*Sig/2*Tau+Sig*SQRT(Tau)*C131) -> 2.941159938 | E131: 0.04115993806
A132: 119 | B132: 0.2624390575 | C132: -0.6358439858 | D132: =P*EXP(-Sig*Sig/2*Tau+Sig*SQRT(Tau)*C132) -> 2.782591595 | E132: 0
A133: 120 | B133: 0.880660946 | C133: 1.17829729 | D133: =P*EXP(-Sig*Sig/2*Tau+Sig*SQRT(Tau)*C133) -> 3.001700722 | E133: 0.1017007224
A134: 121 | B134: 0.6751693834 | C134: 0.4542328617 | D134: =P*EXP(-Sig*Sig/2*Tau+Sig*SQRT(Tau)*C134) -> 2.912253059 | E134: 0.01225305873
A135: 122 | B135: 0.8470417498 | C135: 1.023828047 | D135: =P*EXP(-Sig*Sig/2*Tau+Sig*SQRT(Tau)*C135) -> 2.98239057 | E135: 0.08239056996
A136: 123 | B136: 0.6976609759 | C136: 0.5176850249 | D136: =P*EXP(-Sig*Sig/2*Tau+Sig*SQRT(Tau)*C136) -> 2.919983928 | E136: 0.01998392792
A137: 124 | B137: 0.4284379719 | C137: -0.1803523708 | D137: =P*EXP(-Sig*Sig/2*Tau+Sig*SQRT(Tau)*C137) -> 2.836053678 | E137: 0
A138: 125 | B138: 0.5528638274 | C138: 0.1329001538 | D138: =P*EXP(-Sig*Sig/2*Tau+Sig*SQRT(Tau)*C138) -> 2.873415765 | E138: 0
A139: 126 | B139: 0.6133006867 | C139: 0.2879322152 | D139: =P*EXP(-Sig*Sig/2*Tau+Sig*SQRT(Tau)*C139) -> 2.892088342 | E139: 0
A140: 127 | B140: 0.2475164996 | C140: -0.682325742 | D140: =P*EXP(-Sig*Sig/2*Tau+Sig*SQRT(Tau)*C140) -> 2.777192918 | E140: 0
A141: 128 | B141: 0.9491644654 | C141: 1.636805725 | D141: =P*EXP(-Sig*Sig/2*Tau+Sig*SQRT(Tau)*C141) -> 3.059758205 | E141: 0.1597582048
A142: 129 | B142: 0.1483406705 | C142: -1.043576563 | D142: =P*EXP(-Sig*Sig/2*Tau+Sig*SQRT(Tau)*C142) -> 2.735590506 | E142: =MAX(0,CP*(D142-Strike)) -> 0
A143: 130 | B143: 0.8139809032 | C143: =_xlfn.NORM.S.INV(B143) -> 0.892662023 | D143: =P*EXP(-Sig*Sig/2*Tau+Sig*SQRT(Tau)*C143) -> 2.966091104 | E143: 0.06609110384
A144: 131 | B144: 0.843588471 | C144: 1.009316106 | D144: =P*EXP(-Sig*Sig/2*Tau+Sig*SQRT(Tau)*C144) -> 2.980582833 | E144: 0.08058283258
A145: 132 | B145: 0.1035188787 | C145: -1.261752783 | D145: =P*EXP(-Sig*Sig/2*Tau+Sig*SQRT(Tau)*C145) -> 2.710767318 | E145: 0
A146: 133 | B146: 0.3544215612 | C146: -0.3734102628 | D146: =P*EXP(-Sig*Sig/2*Tau+Sig*SQRT(Tau)*C146) -> 2.813269749 | E146: 0
A147: 134 | B147: 0.3996036828 | C147: -0.2543730548 | D147: =P*EXP(-Sig*Sig/2*Tau+Sig*SQRT(Tau)*C147) -> 2.82729632 | E147: 0
A148: 135 | B148: 0.990449971 | C148: 2.343572339 | D148: =P*EXP(-Sig*Sig/2*Tau+Sig*SQRT(Tau)*C148) -> 3.151457943 | E148: 0.2514579432
A149: 136 | B149: 0.6793472583 | C149: 0.4658742923 | D149: =P*EXP(-Sig*Sig/2*Tau+Sig*SQRT(Tau)*C149) -> 2.91366989 | E149: 0.01366988978
A150: 137 | B150: 0.6529929953 | C150: 0.3934136232 | D150: =P*EXP(-Sig*Sig/2*Tau+Sig*SQRT(Tau)*C150) -> 2.904862192 | E150: 0.004862191579
A151: 138 | B151: 0.7658030363 | C151: 0.7250947133 | D151: =P*EXP(-Sig*Sig/2*Tau+Sig*SQRT(Tau)*C151) -> 2.945397726 | E151: 0.04539772637
A152: 139 | B152: 0.9545863709 | C152: 1.691049975 | D152: =P*EXP(-Sig*Sig/2*Tau+Sig*SQRT(Tau)*C152) -> 3.066700611 | E152: 0.1667006111
A153: 140 | B153: 0.4549219477 | C153: -0.113235445 | D153: =P*EXP(-Sig*Sig/2*Tau+Sig*SQRT(Tau)*C153) -> 2.844017702 | E153: 0
A154: 141 | B154: 0.1992923113 | C154: -0.8441517324 | D154: =P*EXP(-Sig*Sig/2*Tau+Sig*SQRT(Tau)*C154) -> 2.758479034 | E154: 0
A155: 142 | B155: 0.02043414576 | C155: -2.044863761 | D155: =P*EXP(-Sig*Sig/2*Tau+Sig*SQRT(Tau)*C155) -> 2.623508955 | E155: 0
A156: 143 | B156: 0.9096456747 | C156: 1.338576286 | D156: =P*EXP(-Sig*Sig/2*Tau+Sig*SQRT(Tau)*C156) -> 3.021869331 | E156: 0.1218693311
A157: 144 | B157: 0.159258468 | C157: -0.9975101779 | D157: =P*EXP(-Sig*Sig/2*Tau+Sig*SQRT(Tau)*C157) -> 2.740860744 | E157: 0
A158: 145 | B158: 0.6856944378 | C158: 0.4836826272 | D158: =P*EXP(-Sig*Sig/2*Tau+Sig*SQRT(Tau)*C158) -> 2.915838603 | E158: 0.01583860345
A159: 146 | B159: 0.8786878666 | C159: 1.168452554 | D159: =P*EXP(-Sig*Sig/2*Tau+Sig*SQRT(Tau)*C159) -> 3.000466313 | E159: 0.1004663133
A160: 147 | B160: 0.7610132772 | C160: 0.7095657814 | D160: =P*EXP(-Sig*Sig/2*Tau+Sig*SQRT(Tau)*C160) -> 2.943487338 | E160: 0.04348733814
A161: 148 | B161: 0.8949964108 | C161: 1.2535457 | D161: =P*EXP(-Sig*Sig/2*Tau+Sig*SQRT(Tau)*C161) -> 3.011152741 | E161: 0.1111527412
A162: 149 | B162: 0.6721897695 | C162: 0.4459678618 | D162: =P*EXP(-Sig*Sig/2*Tau+Sig*SQRT(Tau)*C162) -> 2.911247578 | E162: 0.01124757752
A163: 150 | B163: 0.3928642476 | C163: -0.2718615258 | D163: =P*EXP(-Sig*Sig/2*Tau+Sig*SQRT(Tau)*C163) -> 2.825231218 | E163: 0
A164: 151 | B164: 0.9888965419 | C164: 2.286809988 | D164: =P*EXP(-Sig*Sig/2*Tau+Sig*SQRT(Tau)*C164) -> 3.143992871 | E164: 0.2439928713
A165: 152 | B165: 0.01149872855 | C165: -2.273476892 | D165: =P*EXP(-Sig*Sig/2*Tau+Sig*SQRT(Tau)*C165) -> 2.598569427 | E165: 0
A166: 153 | B166: 0.2361225817 | C166: -0.7188308234 | D166: =P*EXP(-Sig*Sig/2*Tau+Sig*SQRT(Tau)*C166) -> 2.772960338 | E166: 0
A167: 154 | B167: 0.3114843544 | C167: -0.4916472867 | D167: =P*EXP(-Sig*Sig/2*Tau+Sig*SQRT(Tau)*C167) -> 2.799406355 | E167: 0
A168: 155 | B168: 0.4876146362 | C168: -0.03105049188 | D168: =P*EXP(-Sig*Sig/2*Tau+Sig*SQRT(Tau)*C168) -> 2.853800148 | E168: 0
A169: 156 | B169: 0.8666119174 | C169: 1.110517328 | D169: =P*EXP(-Sig*Sig/2*Tau+Sig*SQRT(Tau)*C169) -> 2.993212224 | E169: 0.09321222365
A170: 157 | B170: 0.8535931045 | C170: 1.05196896 | D170: =P*EXP(-Sig*Sig/2*Tau+Sig*SQRT(Tau)*C170) -> 2.985899179 | E170: 0.08589917928
A171: 158 | B171: 0.4131728478 | C171: -0.2193907235 | D171: =P*EXP(-Sig*Sig/2*Tau+Sig*SQRT(Tau)*C171) -> 2.831431691 | E171: 0
A172: 159 | B172: 0.03307258383 | C172: -1.837438635 | D172: =P*EXP(-Sig*Sig/2*Tau+Sig*SQRT(Tau)*C172) -> 2.646344119 | E172: 0
A173: 160 | B173: 0.8406114032 | C173: 0.9969738698 | D173: =P*EXP(-Sig*Sig/2*Tau+Sig*SQRT(Tau)*C173) -> 2.979046235 | E173: 0.07904623525
A174: 161 | B174: 0.1019713473 | C174: -1.270398564 | D174: =P*EXP(-Sig*Sig/2*Tau+Sig*SQRT(Tau)*C174) -> 2.70978829 | E174: 0
A175: 162 | B175: 0.2377873114 | C175: -0.7134382311 | D175: =P*EXP(-Sig*Sig/2*Tau+Sig*SQRT(Tau)*C175) -> 2.773585176 | E175: 0
A176: 163 | B176: 0.8713507684 | C176: 1.132799496 | D176: =P*EXP(-Sig*Sig/2*Tau+Sig*SQRT(Tau)*C176) -> 2.996000104 | E176: 0.09600010381
A177: 164 | B177: 0.5934088391 | C177: 0.2363226379 | D177: =P*EXP(-Sig*Sig/2*Tau+Sig*SQRT(Tau)*C177) -> 2.885858878 | E177: 0
A178: 165 | B178: 0.9283851873 | C178: 1.463869438 | D178: =P*EXP(-Sig*Sig/2*Tau+Sig*SQRT(Tau)*C178) -> 3.037729844 | E178: 0.1377298439
A179: 166 | B179: 0.9758997469 | C179: 1.975596404 | D179: =P*EXP(-Sig*Sig/2*Tau+Sig*SQRT(Tau)*C179) -> 3.103376921 | E179: 0.2033769206
A180: 167 | B180: 0.8154517154 | C180: 0.8981669148 | D180: =P*EXP(-Sig*Sig/2*Tau+Sig*SQRT(Tau)*C180) -> 2.96677338 | E180: 0.06677338
A181: 168 | B181: 0.2252352526 | C181: -0.7546308544 | D181: =P*EXP(-Sig*Sig/2*Tau+Sig*SQRT(Tau)*C181) -> 2.76881577 | E181: 0
A182: 169 | B182: 0.4536548398 | C182: -0.1164326256 | D182: =P*EXP(-Sig*Sig/2*Tau+Sig*SQRT(Tau)*C182) -> 2.843637821 | E182: 0
A183: 170 | B183: 0.5241894125 | C183: 0.06067106617 | D183: =P*EXP(-Sig*Sig/2*Tau+Sig*SQRT(Tau)*C183) -> 2.864757468 | E183: 0
A184: 171 | B184: 0.6735191876 | C184: 0.4496516702 | D184: =P*EXP(-Sig*Sig/2*Tau+Sig*SQRT(Tau)*C184) -> 2.91169569 | E184: 0.01169568953
A185: 172 | B185: 0.4924812466 | C185: -0.01884783579 | D185: =P*EXP(-Sig*Sig/2*Tau+Sig*SQRT(Tau)*C185) -> 2.855255491 | E185: 0
A186: 173 | B186: 0.6637062016 | C186: 0.4225993557 | D186: =P*EXP(-Sig*Sig/2*Tau+Sig*SQRT(Tau)*C186) -> 2.908406552 | E186: 0.008406552402
A187: 174 | B187: 0.8745489301 | C187: 1.148160918 | D187: =P*EXP(-Sig*Sig/2*Tau+Sig*SQRT(Tau)*C187) -> 2.997923592 | E187: 0.09792359232
A188: 175 | B188: 0.8834922169 | C188: 1.192626797 | D188: =P*EXP(-Sig*Sig/2*Tau+Sig*SQRT(Tau)*C188) -> 3.003498375 | E188: 0.1034983745
A189: 176 | B189: 0.112985126 | C189: -1.21080473 | D189: =P*EXP(-Sig*Sig/2*Tau+Sig*SQRT(Tau)*C189) -> 2.716543743 | E189: 0
A190: 177 | B190: 0.4934372714 | C190: -0.0164510631 | D190: =P*EXP(-Sig*Sig/2*Tau+Sig*SQRT(Tau)*C190) -> 2.855541429 | E190: 0
A191: 178 | B191: 0.2453806145 | C191: -0.6890985874 | D191: =P*EXP(-Sig*Sig/2*Tau+Sig*SQRT(Tau)*C191) -> 2.776407153 | E191: 0
A192: 179 | B192: 0.9895117023 | C192: 2.308405464 | D192: =P*EXP(-Sig*Sig/2*Tau+Sig*SQRT(Tau)*C192) -> 3.146830903 | E192: 0.246830903
A193: 180 | B193: 0.01616349731 | C193: -2.140343777 | D193: =P*EXP(-Sig*Sig/2*Tau+Sig*SQRT(Tau)*C193) -> 2.613064013 | E193: 0
A194: 181 | B194: 0.4974644722 | C194: -0.006355668528 | D194: =P*EXP(-Sig*Sig/2*Tau+Sig*SQRT(Tau)*C194) -> 2.856746133 | E194: 0
A195: 182 | B195: 0.6998754221 | C195: 0.5240422473 | D195: =P*EXP(-Sig*Sig/2*Tau+Sig*SQRT(Tau)*C195) -> 2.920759608 | E195: 0.02075960779
A196: 183 | B196: 0.5245577535 | C196: 0.06159608728 | D196: =P*EXP(-Sig*Sig/2*Tau+Sig*SQRT(Tau)*C196) -> 2.864868188 | E196: 0
A197: 184 | B197: 0.5590536332 | C197: 0.14857027 | D197: =P*EXP(-Sig*Sig/2*Tau+Sig*SQRT(Tau)*C197) -> 2.875297636 | E197: 0
A198: 185 | B198: 0.4346060078 | C198: -0.1646594753 | D198: =P*EXP(-Sig*Sig/2*Tau+Sig*SQRT(Tau)*C198) -> 2.837913781 | E198: 0
A199: 186 | B199: 0.02471538971 | C199: -1.964857098 | D199: =P*EXP(-Sig*Sig/2*Tau+Sig*SQRT(Tau)*C199) -> 2.632293348 | E199: 0
A200: 187 | B200: 0.9872242649 | C200: 2.2329617 | D200: =P*EXP(-Sig*Sig/2*Tau+Sig*SQRT(Tau)*C200) -> 3.136927386 | E200: 0.2369273862
A201: 188 | B201: 0.3862295532 | C201: -0.2891597829 | D201: =P*EXP(-Sig*Sig/2*Tau+Sig*SQRT(Tau)*C201) -> 2.823190061 | E201: 0
A202: 189 | B202: 0.5528972156 | C202: 0.1329845886 | D202: =P*EXP(-Sig*Sig/2*Tau+Sig*SQRT(Tau)*C202) -> 2.873425901 | E202: 0
A203: 190 | B203: 0.6005652988 | C203: 0.2548105811 | D203: =P*EXP(-Sig*Sig/2*Tau+Sig*SQRT(Tau)*C203) -> 2.888088896 | E203: 0
A204: 191 | B204: 0.1807423338 | C204: -0.9125397251 | D204: =P*EXP(-Sig*Sig/2*Tau+Sig*SQRT(Tau)*C204) -> 2.750608463 | E204: 0
... 809 more rows
